[Event "Titled Tuesday Blitz April 18 Early 2023"]
[White "Horvath, Dominik"]
[Black "Daneshvar, Bardiya"]
[WhiteFideId "1642561"]
[BlackFideId "12576468"]
[WhiteElo "2407"]
[BlackElo "2468"]
[Result "0-1"]
[Round "03"]
[TimeControl "180+2"]
[Date "2023.04.18"]
[WhiteClock "0:00:34"]
[BlackClock "0:00:59"]

1. Nf3 {[%clk 0:03:00]}  d6 {[%clk 0:02:59]} 2. d4 {[%clk 0:03:01]}  Nf6 {[%clk 0:03:00]} 3. c4 {[%clk 0:03:01]}  g6 {[%clk 0:03:00]} 4. Nc3 {[%clk 0:03:01]}  Bf5 {[%clk 0:03:01]} 5. g3 {[%clk 0:03:00]}  Ne4 {[%clk 0:02:58]} 6. Bg2 {[%clk 0:02:58]}  Nxc3 {[%clk 0:02:58]} 7. bxc3 {[%clk 0:02:58]}  Be4 {[%clk 0:02:58]} 8. O-O {[%clk 0:02:53]}  Bg7 {[%clk 0:02:57]} 9. Bh3 {[%clk 0:02:53]}  O-O {[%clk 0:02:55]} 10. Nd2 {[%clk 0:02:53]}  Bc6 {[%clk 0:02:55]} 11. e4 {[%clk 0:02:53]}  Bd7 {[%clk 0:02:53]} 12. Bg2 {[%clk 0:02:53]}  c5 {[%clk 0:02:53]} 13. Nb3 {[%clk 0:02:41]}  b6 {[%clk 0:02:40]} 14. e5 {[%clk 0:02:29]}  Bc6 {[%clk 0:02:40]} 15. f4 {[%clk 0:01:54]}  Bxg2 {[%clk 0:02:36]} 16. Kxg2 {[%clk 0:01:54]}  Nc6 {[%clk 0:02:31]} 17. Be3 {[%clk 0:01:54]}  cxd4 {[%clk 0:02:28]} 18. cxd4 {[%clk 0:01:54]}  dxe5 {[%clk 0:02:28]} 19. fxe5 {[%clk 0:01:47]}  Rc8 {[%clk 0:02:28]} 20. Rc1 {[%clk 0:01:46]}  Qd7 {[%clk 0:02:26]} 21. Qf3 {[%clk 0:01:45]}  f6 {[%clk 0:02:16]} 22. e6 {[%clk 0:01:36]}  Qd6 {[%clk 0:02:09]} 23. Bf4 {[%clk 0:01:34]}  Qa3 {[%clk 0:02:06]} 24. d5 {[%clk 0:01:28]}  Ne5 {[%clk 0:02:03]} 25. Bxe5 {[%clk 0:01:26]}  fxe5 {[%clk 0:02:00]} 26. Qe2 {[%clk 0:01:27]}  a5 {[%clk 0:01:53]} 27. Rxf8+ {[%clk 0:01:26]}  Rxf8 {[%clk 0:01:53]} 28. Rc2 {[%clk 0:01:03]}  Bh6 {[%clk 0:01:31]} 29. Qxe5 {[%clk 0:00:57]}  a4 {[%clk 0:01:29]} 30. Nd4 {[%clk 0:00:50]}  Bg7 {[%clk 0:01:17]} 31. Qe4 {[%clk 0:00:47]}  Bxd4 {[%clk 0:01:15]} 32. d6 {[%clk 0:00:34]}  Qxd6 {[%clk 0:00:59]} 33. Rd2 {[%clk 0:00:34]}  Rd8 {[%clk 0:00:59]} 0-1


[Site "https://www.chess.com"]

[Event "Titled Tuesday Blitz April 18 Early 2023"]
[White "Zhigalko_Sergei"]
[Black "Martinez Ramirez, Lennis"]
[BlackFideId "3509079"]
[WhiteElo "2925"]
[BlackElo "2410"]
[Result "1-0"]
[Round "03"]
[TimeControl "180+2"]
[Date "2023.04.18"]
[WhiteClock "0:00:12"]
[BlackClock "0:00:01"]

1. e4 {[%clk 0:03:00]}  c5 {[%clk 0:02:59]} 2. Nf3 {[%clk 0:03:01]}  d6 {[%clk 0:02:56]} 3. d4 {[%clk 0:03:01]}  cxd4 {[%clk 0:02:57]} 4. Qxd4 {[%clk 0:03:02]}  Nc6 {[%clk 0:02:55]} 5. Bb5 {[%clk 0:03:01]}  Bd7 {[%clk 0:02:54]} 6. Bxc6 {[%clk 0:03:02]}  Bxc6 {[%clk 0:02:54]} 7. Nc3 {[%clk 0:03:02]}  Nf6 {[%clk 0:02:51]} 8. Bg5 {[%clk 0:03:03]}  e6 {[%clk 0:02:51]} 9. O-O-O {[%clk 0:03:03]}  Be7 {[%clk 0:02:30]} 10. Rhe1 {[%clk 0:03:02]}  O-O {[%clk 0:02:27]} 11. Kb1 {[%clk 0:03:02]}  Qa5 {[%clk 0:02:19]} 12. Qd2 {[%clk 0:03:02]}  Rfd8 {[%clk 0:02:13]} 13. Nd4 {[%clk 0:03:00]}  h6 {[%clk 0:01:32]} 14. Nd5 {[%clk 0:02:59]}  Qxd2 {[%clk 0:01:23]} 15. Nxe7+ {[%clk 0:03:00]}  Kf8 {[%clk 0:01:17]} 16. Ng6+ {[%clk 0:02:37]}  fxg6 {[%clk 0:01:04]} 17. Bxd2 {[%clk 0:02:37]}  Kf7 {[%clk 0:00:57]} 18. f3 {[%clk 0:02:37]}  d5 {[%clk 0:00:55]} 19. e5 {[%clk 0:02:12]}  Nd7 {[%clk 0:00:49]} 20. h4 {[%clk 0:02:13]}  Rac8 {[%clk 0:00:39]} 21. Bb4 {[%clk 0:02:01]}  Nb6 {[%clk 0:00:21]} 22. b3 {[%clk 0:02:01]}  Bd7 {[%clk 0:00:19]} 23. Kb2 {[%clk 0:01:46]}  Re8 {[%clk 0:00:17]} 24. a4 {[%clk 0:01:37]}  Na8 {[%clk 0:00:16]} 25. Bd6 {[%clk 0:01:35]}  Nc7 {[%clk 0:00:16]} 26. Rd3 {[%clk 0:01:18]}  a6 {[%clk 0:00:16]} 27. Rc3 {[%clk 0:01:07]}  Na8 {[%clk 0:00:14]} 28. Ree3 {[%clk 0:01:07]}  Rxc3 {[%clk 0:00:14]} 29. Rxc3 {[%clk 0:01:08]}  Rc8 {[%clk 0:00:14]} 30. Re3 {[%clk 0:01:08]}  Nb6 {[%clk 0:00:13]} 31. Rd3 {[%clk 0:00:57]}  Na8 {[%clk 0:00:13]} 32. a5 {[%clk 0:00:39]}  Nc7 {[%clk 0:00:13]} 33. Bxc7 {[%clk 0:00:37]}  Rxc7 {[%clk 0:00:13]} 34. Rc3 {[%clk 0:00:38]}  Rc8 {[%clk 0:00:07]} 35. Rxc8 {[%clk 0:00:37]}  Bxc8 {[%clk 0:00:08]} 36. Kc3 {[%clk 0:00:37]}  g5 {[%clk 0:00:04]} 37. hxg5 {[%clk 0:00:38]}  h5 {[%clk 0:00:04]} 38. g3 {[%clk 0:00:23]}  Kg6 {[%clk 0:00:03]} 39. f4 {[%clk 0:00:24]}  h4 {[%clk 0:00:03]} 40. gxh4 {[%clk 0:00:25]}  Kh5 {[%clk 0:00:03]} 41. Kb4 {[%clk 0:00:11]}  Kxh4 {[%clk 0:00:03]} 42. Kc5 {[%clk 0:00:12]}  Kg4 {[%clk 0:00:02]} 43. f5 {[%clk 0:00:11]}  exf5 {[%clk 0:00:01]} 44. e6 {[%clk 0:00:12]} 1-0


[Site "https://www.chess.com"]

[Event "Titled Tuesday Blitz April 18 Early 2023"]
[White "Sammed Jaykumar, Shete"]
[Black "Chigaev, Maksim"]
[WhiteFideId "5073421"]
[BlackFideId "4108116"]
[WhiteElo "2278"]
[BlackElo "2547"]
[Result "0-1"]
[Round "03"]
[TimeControl "180+2"]
[Date "2023.04.18"]
[WhiteClock "0:00:01"]
[BlackClock "0:00:05"]

1. e4 {[%clk 0:03:00]}  e6 {[%clk 0:03:00]} 2. d4 {[%clk 0:02:57]}  d5 {[%clk 0:03:01]} 3. Nd2 {[%clk 0:02:58]}  c5 {[%clk 0:03:01]} 4. Ngf3 {[%clk 0:02:58]}  cxd4 {[%clk 0:03:01]} 5. Nxd4 {[%clk 0:02:55]}  Nf6 {[%clk 0:03:02]} 6. exd5 {[%clk 0:02:49]}  Qxd5 {[%clk 0:03:03]} 7. c3 {[%clk 0:02:41]}  Bc5 {[%clk 0:02:52]} 8. N2b3 {[%clk 0:02:27]}  Bb6 {[%clk 0:02:49]} 9. Qf3 {[%clk 0:02:21]}  O-O {[%clk 0:02:43]} 10. Qxd5 {[%clk 0:02:15]}  Nxd5 {[%clk 0:02:44]} 11. Be2 {[%clk 0:02:10]}  Nc6 {[%clk 0:02:41]} 12. Nxc6 {[%clk 0:02:08]}  bxc6 {[%clk 0:02:42]} 13. O-O {[%clk 0:02:08]}  a5 {[%clk 0:02:42]} 14. Rd1 {[%clk 0:01:44]}  a4 {[%clk 0:02:38]} 15. Nd4 {[%clk 0:01:43]}  Bb7 {[%clk 0:02:34]} 16. Bd2 {[%clk 0:01:20]}  Rfd8 {[%clk 0:02:29]} 17. Nf3 {[%clk 0:01:19]}  c5 {[%clk 0:02:08]} 18. Ne5 {[%clk 0:01:16]}  Bc7 {[%clk 0:02:06]} 19. Nc4 {[%clk 0:01:15]}  Ba6 {[%clk 0:02:06]} 20. Kf1 {[%clk 0:01:14]}  h6 {[%clk 0:02:02]} 21. g3 {[%clk 0:01:14]}  Rab8 {[%clk 0:01:57]} 22. Rab1 {[%clk 0:01:13]}  Nf6 {[%clk 0:01:41]} 23. Be3 {[%clk 0:01:05]}  Rxd1+ {[%clk 0:01:16]} 24. Rxd1 {[%clk 0:01:06]}  Ng4 {[%clk 0:01:10]} 25. Bxc5 {[%clk 0:00:52]}  Nxh2+ {[%clk 0:01:07]} 26. Kg2 {[%clk 0:00:52]}  Ng4 {[%clk 0:01:08]} 27. Rd7 {[%clk 0:00:45]}  Be5 {[%clk 0:00:38]} 28. Nxe5 {[%clk 0:00:15]}  Nxe5 {[%clk 0:00:34]} 29. Rd2 {[%clk 0:00:13]}  Nc4 {[%clk 0:00:31]} 30. Bxc4 {[%clk 0:00:12]}  Bxc4 {[%clk 0:00:32]} 31. a3 {[%clk 0:00:12]}  Bd5+ {[%clk 0:00:32]} 32. f3 {[%clk 0:00:11]}  Kh7 {[%clk 0:00:32]} 33. Kf2 {[%clk 0:00:11]}  g5 {[%clk 0:00:32]} 34. Bb4 {[%clk 0:00:11]}  Kg6 {[%clk 0:00:32]} 35. Rd4 {[%clk 0:00:12]}  h5 {[%clk 0:00:30]} 36. c4 {[%clk 0:00:12]}  Bc6 {[%clk 0:00:30]} 37. Bc3 {[%clk 0:00:09]}  Rc8 {[%clk 0:00:28]} 38. Bb4 {[%clk 0:00:08]}  f6 {[%clk 0:00:28]} 39. c5 {[%clk 0:00:07]}  Bd5 {[%clk 0:00:28]} 40. Bc3 {[%clk 0:00:05]}  Bc6 {[%clk 0:00:27]} 41. Rd6 {[%clk 0:00:04]}  Kf7 {[%clk 0:00:23]} 42. Bb4 {[%clk 0:00:02]}  Bd5 {[%clk 0:00:20]} 43. Ra6 {[%clk 0:00:02]}  Bc6 {[%clk 0:00:19]} 44. Ra7+ {[%clk 0:00:02]}  Kg6 {[%clk 0:00:19]} 45. Re7 {[%clk 0:00:02]}  Kf5 {[%clk 0:00:20]} 46. Rh7 {[%clk 0:00:03]}  Kg6 {[%clk 0:00:19]} 47. Re7 {[%clk 0:00:03]}  e5 {[%clk 0:00:20]} 48. Ra7 {[%clk 0:00:04]}  Rd8 {[%clk 0:00:20]} 49. Ke3 {[%clk 0:00:03]}  g4 {[%clk 0:00:19]} 50. fxg4 {[%clk 0:00:02]}  hxg4 {[%clk 0:00:19]} 51. Rc7 {[%clk 0:00:01]}  Bb5 {[%clk 0:00:20]} 52. c6 {[%clk 0:00:02]}  Rd3+ {[%clk 0:00:19]} 53. Kf2 {[%clk 0:00:02]}  Rf3+ {[%clk 0:00:17]} 54. Kg2 {[%clk 0:00:02]}  Re3 {[%clk 0:00:18]} 55. Rc8 {[%clk 0:00:03]}  Re2+ {[%clk 0:00:18]} 56. Kg1 {[%clk 0:00:03]}  Kf5 {[%clk 0:00:17]} 57. c7 {[%clk 0:00:03]}  Rxb2 {[%clk 0:00:12]} 58. Rd8 {[%clk 0:00:01]}  Ba6 {[%clk 0:00:11]} 59. c8=Q+ {[%clk 0:00:02]}  Bxc8 {[%clk 0:00:12]} 60. Rxc8 {[%clk 0:00:03]}  Ke4 {[%clk 0:00:13]} 61. Rc3 {[%clk 0:00:03]}  f5 {[%clk 0:00:12]} 62. Bc5 {[%clk 0:00:02]}  f4 {[%clk 0:00:12]} 63. gxf4 {[%clk 0:00:02]}  exf4 {[%clk 0:00:13]} 64. Rc4+ {[%clk 0:00:02]}  Kf3 {[%clk 0:00:10]} 65. Rc3+ {[%clk 0:00:03]}  Ke2 {[%clk 0:00:11]} 66. Kg2 {[%clk 0:00:01]}  Kd1+ {[%clk 0:00:07]} 67. Kf1 {[%clk 0:00:01]}  g3 {[%clk 0:00:06]} 68. Rf3 {[%clk 0:00:01]}  Rc2 {[%clk 0:00:05]} 0-1


[Site "https://www.chess.com"]

[Event "Titled Tuesday Blitz April 18 Early 2023"]
[White "Bodi, Tibor"]
[Black "Indjic, Aleksandar"]
[WhiteFideId "701084"]
[BlackFideId "911925"]
[WhiteElo "2187"]
[BlackElo "2614"]
[Result "1-0"]
[Round "03"]
[TimeControl "180+2"]
[Date "2023.04.18"]
[WhiteClock "0:00:10"]
[BlackClock "0:00:16"]

1. c4 {[%clk 0:02:55]}  e5 {[%clk 0:02:58]} 2. g3 {[%clk 0:02:56]}  h5 {[%clk 0:02:56]} 3. h3 {[%clk 0:02:53]}  Nc6 {[%clk 0:02:54]} 4. Bg2 {[%clk 0:02:53]}  Bc5 {[%clk 0:02:53]} 5. e3 {[%clk 0:02:53]}  a6 {[%clk 0:02:51]} 6. a3 {[%clk 0:02:52]}  Ba7 {[%clk 0:02:51]} 7. b4 {[%clk 0:02:52]}  d6 {[%clk 0:02:52]} 8. Bb2 {[%clk 0:02:52]}  Rb8 {[%clk 0:02:47]} 9. Ne2 {[%clk 0:02:52]}  h4 {[%clk 0:02:46]} 10. g4 {[%clk 0:02:52]}  f5 {[%clk 0:02:46]} 11. gxf5 {[%clk 0:02:49]}  Bxf5 {[%clk 0:02:47]} 12. d3 {[%clk 0:02:43]}  Nf6 {[%clk 0:02:39]} 13. Nbc3 {[%clk 0:02:39]}  Ne7 {[%clk 0:02:39]} 14. Ne4 {[%clk 0:02:32]}  Nxe4 {[%clk 0:02:37]} 15. dxe4 {[%clk 0:02:33]}  Be6 {[%clk 0:02:36]} 16. c5 {[%clk 0:02:24]}  Nc6 {[%clk 0:02:32]} 17. cxd6 {[%clk 0:02:14]}  cxd6 {[%clk 0:02:31]} 18. Rg1 {[%clk 0:02:08]}  O-O {[%clk 0:02:30]} 19. Qd3 {[%clk 0:01:52]}  Rc8 {[%clk 0:02:26]} 20. f4 {[%clk 0:01:48]}  Qb6 {[%clk 0:02:17]} 21. f5 {[%clk 0:01:41]}  Bf7 {[%clk 0:02:16]} 22. Kf2 {[%clk 0:01:29]}  Kh8 {[%clk 0:01:56]} 23. Bf3 {[%clk 0:01:26]}  Ne7 {[%clk 0:01:55]} 24. Rg4 {[%clk 0:01:10]}  Bc4 {[%clk 0:01:40]} 25. Rxh4+ {[%clk 0:01:03]}  Kg8 {[%clk 0:01:39]} 26. Qd2 {[%clk 0:00:51]}  d5 {[%clk 0:01:31]} 27. Rg1 {[%clk 0:00:49]}  dxe4 {[%clk 0:01:30]} 28. Bxe5 {[%clk 0:00:32]}  Nxf5 {[%clk 0:01:29]} 29. Nd4 {[%clk 0:00:25]}  Rc7 {[%clk 0:00:46]} 30. Nxf5 {[%clk 0:00:24]}  Rxf5 {[%clk 0:00:43]} 31. Qd8+ {[%clk 0:00:23]}  Rf8 {[%clk 0:00:22]} 32. Rxg7+ {[%clk 0:00:14]}  Rxg7 {[%clk 0:00:20]} 33. Rh8+ {[%clk 0:00:14]}  Kf7 {[%clk 0:00:18]} 34. Rxf8+ {[%clk 0:00:09]}  Ke6 {[%clk 0:00:18]} 35. Rf6+ {[%clk 0:00:09]}  Kxe5 {[%clk 0:00:17]} 36. Rxb6 {[%clk 0:00:09]}  Bxb6 {[%clk 0:00:17]} 37. Qxb6 {[%clk 0:00:10]}  Rd7 {[%clk 0:00:14]} 38. Qc5+ {[%clk 0:00:09]}  Bd5 {[%clk 0:00:15]} 39. Qd4+ {[%clk 0:00:09]}  Kd6 {[%clk 0:00:15]} 40. Bxe4 {[%clk 0:00:10]}  Kc6 {[%clk 0:00:15]} 41. Bxd5+ {[%clk 0:00:10]}  Rxd5 {[%clk 0:00:16]} 42. h4 {[%clk 0:00:10]} 1-0


[Site "https://www.chess.com"]

[Event "Titled Tuesday Blitz April 18 Early 2023"]
[White "Pichot, Alan"]
[Black "Avramidou, Anastasia"]
[WhiteFideId "110973"]
[BlackFideId "4239873"]
[WhiteElo "2573"]
[BlackElo "2160"]
[Result "1-0"]
[Round "03"]
[TimeControl "180+2"]
[Date "2023.04.18"]
[WhiteClock "0:00:12"]
[BlackClock "0:00:03"]

1. e4 {[%clk 0:03:00]}  e6 {[%clk 0:02:59]} 2. d4 {[%clk 0:02:58]}  d5 {[%clk 0:03:00]} 3. Nc3 {[%clk 0:02:58]}  Bb4 {[%clk 0:02:59]} 4. e5 {[%clk 0:02:58]}  c5 {[%clk 0:02:59]} 5. a3 {[%clk 0:02:58]}  Bxc3+ {[%clk 0:02:59]} 6. bxc3 {[%clk 0:02:59]}  Qa5 {[%clk 0:02:59]} 7. Bd2 {[%clk 0:02:59]}  Qa4 {[%clk 0:03:00]} 8. Qb1 {[%clk 0:02:59]}  c4 {[%clk 0:03:00]} 9. h4 {[%clk 0:02:58]}  Ne7 {[%clk 0:02:59]} 10. h5 {[%clk 0:02:58]}  h6 {[%clk 0:03:00]} 11. Ne2 {[%clk 0:02:31]}  Nbc6 {[%clk 0:02:58]} 12. Ng3 {[%clk 0:02:30]}  b6 {[%clk 0:02:47]} 13. Be2 {[%clk 0:02:30]}  Bd7 {[%clk 0:02:47]} 14. O-O {[%clk 0:02:25]}  O-O-O {[%clk 0:02:46]} 15. f4 {[%clk 0:02:23]}  g6 {[%clk 0:02:42]} 16. Ra2 {[%clk 0:02:17]}  Rdg8 {[%clk 0:02:40]} 17. Qe1 {[%clk 0:02:15]}  Nf5 {[%clk 0:02:33]} 18. Nxf5 {[%clk 0:02:04]}  gxf5 {[%clk 0:02:32]} 19. Qh4 {[%clk 0:02:04]}  Rh7 {[%clk 0:01:43]} 20. Bf3 {[%clk 0:02:01]}  Nb8 {[%clk 0:01:04]} 21. Qe7 {[%clk 0:01:57]}  Nc6 {[%clk 0:01:00]} 22. Qf6 {[%clk 0:01:45]}  Nb8 {[%clk 0:01:00]} 23. Rb1 {[%clk 0:01:39]}  Na6 {[%clk 0:00:59]} 24. Qe7 {[%clk 0:01:35]}  Re8 {[%clk 0:00:51]} 25. Qf6 {[%clk 0:01:25]}  Rg8 {[%clk 0:00:51]} 26. Kf2 {[%clk 0:01:25]}  Nc7 {[%clk 0:00:43]} 27. Qe7 {[%clk 0:01:19]}  Re8 {[%clk 0:00:38]} 28. Qb4 {[%clk 0:01:16]}  Qxb4 {[%clk 0:00:38]} 29. axb4 {[%clk 0:01:15]}  Kb7 {[%clk 0:00:38]} 30. Ke3 {[%clk 0:01:01]}  a6 {[%clk 0:00:38]} 31. Be1 {[%clk 0:01:01]}  Rg8 {[%clk 0:00:37]} 32. Bh4 {[%clk 0:01:01]}  Bb5 {[%clk 0:00:34]} 33. Rg1 {[%clk 0:00:57]}  Ne8 {[%clk 0:00:33]} 34. Raa1 {[%clk 0:00:56]}  Rhg7 {[%clk 0:00:33]} 35. g3 {[%clk 0:00:54]}  Kc6 {[%clk 0:00:21]} 36. Rg2 {[%clk 0:00:54]}  Kd7 {[%clk 0:00:21]} 37. Rag1 {[%clk 0:00:53]}  Kc6 {[%clk 0:00:11]} 38. g4 {[%clk 0:00:42]}  fxg4 {[%clk 0:00:12]} 39. Bxg4 {[%clk 0:00:42]}  a5 {[%clk 0:00:12]} 40. bxa5 {[%clk 0:00:36]}  bxa5 {[%clk 0:00:13]} 41. Kf3 {[%clk 0:00:30]}  a4 {[%clk 0:00:12]} 42. Rb1 {[%clk 0:00:27]}  a3 {[%clk 0:00:10]} 43. Ra1 {[%clk 0:00:27]}  f5 {[%clk 0:00:08]} 44. exf6 {[%clk 0:00:26]}  Ra7 {[%clk 0:00:09]} 45. Bxe6 {[%clk 0:00:25]}  Rxg2 {[%clk 0:00:09]} 46. Kxg2 {[%clk 0:00:26]}  Nd6 {[%clk 0:00:09]} 47. f5 {[%clk 0:00:22]}  Kb6 {[%clk 0:00:07]} 48. Bg3 {[%clk 0:00:22]}  Ne4 {[%clk 0:00:05]} 49. f7 {[%clk 0:00:22]}  Ra8 {[%clk 0:00:04]} 50. Rxa3 {[%clk 0:00:22]}  Rd8 {[%clk 0:00:01]} 51. Be5 {[%clk 0:00:22]}  Ng5 {[%clk 0:00:01]} 52. Bg7 {[%clk 0:00:21]}  Nxf7 {[%clk 0:00:01]} 53. Bxf7 {[%clk 0:00:19]}  Rd7 {[%clk 0:00:02]} 54. Bg6 {[%clk 0:00:19]}  Rxg7 {[%clk 0:00:02]} 55. f6 {[%clk 0:00:19]}  Rg8 {[%clk 0:00:03]} 56. Kg3 {[%clk 0:00:18]}  Rf8 {[%clk 0:00:03]} 57. f7 {[%clk 0:00:18]}  Kc7 {[%clk 0:00:03]} 58. Kf4 {[%clk 0:00:17]}  Kd6 {[%clk 0:00:03]} 59. Ra7 {[%clk 0:00:16]}  Bd7 {[%clk 0:00:03]} 60. Bf5 {[%clk 0:00:09]}  Rxf7 {[%clk 0:00:01]} 61. Rxd7+ {[%clk 0:00:09]}  Rxd7 {[%clk 0:00:01]} 62. Bxd7 {[%clk 0:00:10]}  Kxd7 {[%clk 0:00:02]} 63. Ke5 {[%clk 0:00:11]}  Kc6 {[%clk 0:00:03]} 64. Ke6 {[%clk 0:00:11]}  Kb5 {[%clk 0:00:03]} 65. Kxd5 {[%clk 0:00:12]} 1-0


[Site "https://www.chess.com"]

[Event "Titled Tuesday Blitz April 18 Early 2023"]
[White "Bacrot, Etienne"]
[Black "djokovic74"]
[WhiteFideId "605506"]
[WhiteElo "2663"]
[BlackElo "2586"]
[Result "1-0"]
[Round "03"]
[TimeControl "180+2"]
[Date "2023.04.18"]
[WhiteClock "0:00:22"]
[BlackClock "0:00:01"]

1. e4 {[%clk 0:03:00]}  e6 {[%clk 0:03:00]} 2. Nf3 {[%clk 0:03:00]}  d5 {[%clk 0:03:00]} 3. exd5 {[%clk 0:03:01]}  exd5 {[%clk 0:03:00]} 4. d4 {[%clk 0:03:02]}  Bd6 {[%clk 0:02:59]} 5. c4 {[%clk 0:03:01]}  Nf6 {[%clk 0:02:56]} 6. c5 {[%clk 0:03:01]}  Be7 {[%clk 0:02:54]} 7. Qa4+ {[%clk 0:03:01]}  Bd7 {[%clk 0:02:53]} 8. Qc2 {[%clk 0:03:01]}  O-O {[%clk 0:02:47]} 9. Be3 {[%clk 0:02:52]}  b6 {[%clk 0:02:42]} 10. Nc3 {[%clk 0:02:50]}  bxc5 {[%clk 0:02:12]} 11. dxc5 {[%clk 0:02:51]}  c6 {[%clk 0:02:04]} 12. h3 {[%clk 0:02:39]}  a5 {[%clk 0:02:02]} 13. Na4 {[%clk 0:02:30]}  Ne4 {[%clk 0:01:48]} 14. Bd3 {[%clk 0:02:28]}  Na6 {[%clk 0:01:27]} 15. a3 {[%clk 0:02:27]}  f5 {[%clk 0:01:26]} 16. O-O {[%clk 0:02:25]}  Qc7 {[%clk 0:01:17]} 17. Bd4 {[%clk 0:02:11]}  Bf6 {[%clk 0:01:09]} 18. Rfe1 {[%clk 0:01:53]}  Qb7 {[%clk 0:00:48]} 19. Nb6 {[%clk 0:01:47]}  Ra7 {[%clk 0:00:37]} 20. Bxf6 {[%clk 0:01:42]}  Rxf6 {[%clk 0:00:34]} 21. Na4 {[%clk 0:01:20]}  Ra8 {[%clk 0:00:23]} 22. Nd4 {[%clk 0:01:19]}  Qa7 {[%clk 0:00:14]} 23. Rac1 {[%clk 0:01:09]}  Raf8 {[%clk 0:00:10]} 24. f3 {[%clk 0:01:02]}  Ng5 {[%clk 0:00:10]} 25. Qd2 {[%clk 0:00:59]}  Rg6 {[%clk 0:00:09]} 26. Kf2 {[%clk 0:00:54]}  Nxh3+ {[%clk 0:00:05]} 27. gxh3 {[%clk 0:00:54]}  Qc7 {[%clk 0:00:05]} 28. f4 {[%clk 0:00:52]}  Qd8 {[%clk 0:00:04]} 29. Nf3 {[%clk 0:00:51]}  Nc7 {[%clk 0:00:04]} 30. Rg1 {[%clk 0:00:47]}  Rh6 {[%clk 0:00:04]} 31. Rg3 {[%clk 0:00:44]}  Ne6 {[%clk 0:00:05]} 32. Rcg1 {[%clk 0:00:44]}  Qf6 {[%clk 0:00:03]} 33. Qc3 {[%clk 0:00:41]}  d4 {[%clk 0:00:03]} 34. Qd2 {[%clk 0:00:41]}  Kh8 {[%clk 0:00:03]} 35. Bc4 {[%clk 0:00:40]}  Rf7 {[%clk 0:00:02]} 36. Bxe6 {[%clk 0:00:38]}  Bxe6 {[%clk 0:00:03]} 37. Qxd4 {[%clk 0:00:38]}  Qe7 {[%clk 0:00:02]} 38. Nb6 {[%clk 0:00:33]}  Bd5 {[%clk 0:00:01]} 39. Nxd5 {[%clk 0:00:31]}  cxd5 {[%clk 0:00:02]} 40. Ne5 {[%clk 0:00:30]}  Rf8 {[%clk 0:00:02]} 41. Rxg7 {[%clk 0:00:28]}  Qh4+ {[%clk 0:00:02]} 42. R1g3 {[%clk 0:00:28]}  Rhf6 {[%clk 0:00:02]} 43. Nf7+ {[%clk 0:00:22]}  R6xf7 {[%clk 0:00:01]} 44. Rg8# {[%clk 0:00:22]} 1-0


[Site "https://www.chess.com"]

[Event "Titled Tuesday Blitz April 18 Early 2023"]
[White "wqws"]
[Black "Costachi, Mihnea"]
[BlackFideId "1217518"]
[WhiteElo "2584"]
[BlackElo "2456"]
[Result "1-0"]
[Round "03"]
[TimeControl "180+2"]
[Date "2023.04.18"]
[WhiteClock "0:00:25"]
[BlackClock "0:00:03"]

1. e4 {[%clk 0:03:00]}  g6 {[%clk 0:02:55]} 2. d4 {[%clk 0:03:00]}  Bg7 {[%clk 0:02:55]} 3. Nc3 {[%clk 0:03:00]}  d6 {[%clk 0:02:54]} 4. Bg5 {[%clk 0:02:55]}  h6 {[%clk 0:02:53]} 5. Be3 {[%clk 0:02:54]}  Nc6 {[%clk 0:02:51]} 6. Qd2 {[%clk 0:02:50]}  e5 {[%clk 0:02:51]} 7. d5 {[%clk 0:02:48]}  Nce7 {[%clk 0:02:50]} 8. O-O-O {[%clk 0:02:45]}  f5 {[%clk 0:02:44]} 9. f3 {[%clk 0:02:40]}  Nf6 {[%clk 0:02:44]} 10. Nh3 {[%clk 0:02:27]}  a6 {[%clk 0:02:31]} 11. f4 {[%clk 0:02:16]}  Nxe4 {[%clk 0:02:27]} 12. Nxe4 {[%clk 0:02:15]}  fxe4 {[%clk 0:02:28]} 13. fxe5 {[%clk 0:02:15]}  dxe5 {[%clk 0:02:12]} 14. Nf2 {[%clk 0:02:12]}  Nf5 {[%clk 0:02:08]} 15. Nxe4 {[%clk 0:02:12]}  Nxe3 {[%clk 0:02:07]} 16. Qxe3 {[%clk 0:02:12]}  O-O {[%clk 0:02:08]} 17. d6 {[%clk 0:01:51]}  cxd6 {[%clk 0:01:51]} 18. Rxd6 {[%clk 0:01:49]}  Qe8 {[%clk 0:01:45]} 19. Bd3 {[%clk 0:01:29]}  Bf5 {[%clk 0:01:44]} 20. Rf1 {[%clk 0:00:57]}  Qe7 {[%clk 0:01:39]} 21. Rb6 {[%clk 0:00:51]}  Kh8 {[%clk 0:01:24]} 22. g4 {[%clk 0:00:42]}  Bxg4 {[%clk 0:01:11]} 23. Rxf8+ {[%clk 0:00:39]}  Rxf8 {[%clk 0:01:12]} 24. Rxg6 {[%clk 0:00:39]}  Bf5 {[%clk 0:01:13]} 25. Rxh6+ {[%clk 0:00:26]}  Bxh6 {[%clk 0:01:12]} 26. Qxh6+ {[%clk 0:00:27]}  Bh7 {[%clk 0:00:43]} 27. Ng5 {[%clk 0:00:27]}  e4 {[%clk 0:00:28]} 28. Nxh7 {[%clk 0:00:27]}  Rf1+ {[%clk 0:00:03]} 29. Bxf1 {[%clk 0:00:26]}  Qb4 {[%clk 0:00:03]} 30. Nf6# {[%clk 0:00:25]} 1-0


[Site "https://www.chess.com"]

[Event "Titled Tuesday Blitz April 18 Early 2023"]
[White "Ezat, Mohamed"]
[Black "Movahed, Sina"]
[WhiteFideId "10600906"]
[BlackFideId "42520835"]
[WhiteElo "2386"]
[BlackElo "2225"]
[Result "0-1"]
[Round "03"]
[TimeControl "180+2"]
[Date "2023.04.18"]
[WhiteClock "0:00:13"]
[BlackClock "0:00:56"]

1. d4 {[%clk 0:03:00]}  Nf6 {[%clk 0:02:59]} 2. c4 {[%clk 0:03:01]}  g6 {[%clk 0:02:52]} 3. Nc3 {[%clk 0:03:01]}  d6 {[%clk 0:02:53]} 4. e4 {[%clk 0:03:00]}  Bg7 {[%clk 0:02:53]} 5. Be2 {[%clk 0:03:01]}  O-O {[%clk 0:02:53]} 6. Bg5 {[%clk 0:03:02]}  Na6 {[%clk 0:02:52]} 7. Qd2 {[%clk 0:03:01]}  e5 {[%clk 0:02:41]} 8. d5 {[%clk 0:03:01]}  Nc5 {[%clk 0:02:40]} 9. f3 {[%clk 0:03:01]}  h6 {[%clk 0:02:40]} 10. Be3 {[%clk 0:03:00]}  a5 {[%clk 0:02:37]} 11. g4 {[%clk 0:02:59]}  h5 {[%clk 0:02:37]} 12. h3 {[%clk 0:02:58]}  c6 {[%clk 0:02:32]} 13. Bg5 {[%clk 0:02:57]}  cxd5 {[%clk 0:02:30]} 14. cxd5 {[%clk 0:02:57]}  Qb6 {[%clk 0:02:22]} 15. Kf1 {[%clk 0:02:21]}  Bd7 {[%clk 0:01:58]} 16. Kg2 {[%clk 0:02:20]}  a4 {[%clk 0:01:49]} 17. Bf1 {[%clk 0:01:23]}  Nh7 {[%clk 0:01:44]} 18. Be3 {[%clk 0:01:22]}  f5 {[%clk 0:01:43]} 19. gxf5 {[%clk 0:01:11]}  gxf5 {[%clk 0:01:44]} 20. Nge2 {[%clk 0:01:09]}  f4 {[%clk 0:01:37]} 21. Bf2 {[%clk 0:01:08]}  Kh8 {[%clk 0:01:36]} 22. Kh2 {[%clk 0:01:04]}  Bf6 {[%clk 0:01:27]} 23. h4 {[%clk 0:01:00]}  Qd8 {[%clk 0:01:23]} 24. Bh3 {[%clk 0:00:51]}  Bxh4 {[%clk 0:01:17]} 25. Bxd7 {[%clk 0:00:50]}  Bxf2 {[%clk 0:01:15]} 26. Nxf4 {[%clk 0:00:20]}  Rxf4 {[%clk 0:01:00]} 27. Qxf2 {[%clk 0:00:19]}  Qxd7 {[%clk 0:01:00]} 28. Kg2 {[%clk 0:00:17]}  Rg8+ {[%clk 0:00:59]} 29. Kf1 {[%clk 0:00:17]}  Rgf8 {[%clk 0:00:59]} 30. Ke2 {[%clk 0:00:14]}  Rxf3 {[%clk 0:00:59]} 31. Qxf3 {[%clk 0:00:12]}  Rxf3 {[%clk 0:01:00]} 32. Kxf3 {[%clk 0:00:13]}  Qg4+ {[%clk 0:01:00]} 33. Ke3 {[%clk 0:00:13]}  Qg3+ {[%clk 0:01:00]} 34. Kd2 {[%clk 0:00:13]}  Qf2+ {[%clk 0:01:00]} 35. Kc1 {[%clk 0:00:11]}  Nd3+ {[%clk 0:01:00]} 36. Kd1 {[%clk 0:00:12]}  Nxb2+ {[%clk 0:00:58]} 37. Kc1 {[%clk 0:00:12]}  Nc4 {[%clk 0:00:57]} 38. Kd1 {[%clk 0:00:13]}  Qd2# {[%clk 0:00:56]} 0-1


[Site "https://www.chess.com"]